Workbook

Sheet survival data
B1: Tool to plot net survival and estimate median survival time
B3: Plotting functional survival | J3: Developed by Albert Kilian
B5: Location/Brand: | C5: A | F5: Data description:
C7: years* | D7: survival (%) | E7: 95% CI low | F7: 95% CI high
C8: 0 | D8: 100 | E8: 100 | F8: 100 | G8: =D8-E8 -> 0 | H8: =F8-D8 -> 0 | J8: Decimal year calculator
G9: 0 | H9: =F9-D9 -> 0 | J9: Months | K9: in years
G10: 0 | H10: =F10-D10 -> 0 | J10: 0 | K10: =J10/12 -> 0
G11: 0 | H11: 0
G12: 0 | H12: =F12-D12 -> 0
G13: 0 | H13: 0 | O13: This tool was developed as part of the NetWorks Project
C14: * since distribution | O14: with funding from USAID/PMI
O15: Cooperative Agreement No. GHS-A‐00‐09-00014-00
B16: Median survival calculator | J16: Formula for median survival
C18: time (yrs) | E18: survival (%) | F18: 95% CI low | G18: 95% CI high
B19: t1 | D19: p1
B20: t2 | D20: p2 | J20: tm= | K20: median survival
J21: t1= | K21: first time point (years since distribution)
C22: tm | D22: 95% CI low | E22: 95% CI high | J22: t2= | K22: second time point
C23: =IF( AND(C19>0, C20>0,E19>0, E20>0), C19+((C20-C19)*(E19-50)/(E19-E20)), " ") ->  | D23: =IF(AND(C19>0, C20>0, F19>0, F20>0), C19+((C20-C19)*(F19-50)/(F19-F20)), " ") ->  | E23: =IF(AND(C19>0, C20>0, G19>0, G20>0), C19+((C20-C19)*(G19-50)/(G19-G20)), " ") ->  | J23: p1= | K23: functional survival at t1
J25: p2= | K25: functional survival at t2

Sheet loss data (hidden)
B3: Years | C3: 0 | D3: 1 | E3: 2 | F3: 3 | G3: 4 | H3: 5 | I3: 6 | J3: 7 | K3: 8 | L3: 9 | M3: 10 | N3: 11 | O3: 12 | P3: 13 | Q3: 14 | R3: 15 | S3: 16 | T3: 17 | U3: 18 | V3: 19 | W3: 20 | X3: 21 | Y3: 22 | Z3: 23 | AA3: 24 | AB3: 25
B4: loss fraction (from original cohort)
B5: 1-year | D5: =1-D35 -> 0.499725093 | E5: =(1-E35)-D5 -> 0.4601535983 | F5: =(1-F35)-(SUM($D5:E5)) -> 0.04007035565 | G5: =(1-G35)-(SUM($D5:F5)) -> 5.095302781e-05 | H5: =(1-H35)-(SUM($D5:G5)) -> 0 | I5: =(1-I35)-(SUM($D5:H5)) -> 0 | J5: =(1-J35)-(SUM($D5:I5)) -> 0 | K5: =(1-K35)-(SUM($D5:J5)) -> 0 | L5: =(1-L35)-(SUM($D5:K5)) -> 0 | M5: =(1-M35)-(SUM($D5:L5)) -> 0 | N5: =(1-N35)-(SUM($D5:M5)) -> 0 | O5: =(1-O35)-(SUM($D5:N5)) -> 0
B6: 1.5-year | D6: =1-D38 -> 0.2577625659 | E6: =(1-E38)-D6 -> 0.4600961821 | F6: =(1-F38)-(SUM($D6:E6)) -> 0.2401615825 | G6: =(1-G38)-(SUM($D6:F6)) -> 0.04075243561 | H6: =(1-H38)-(SUM($D6:G6)) -> 0.001226258096 | I6: =(1-I38)-(SUM($D6:H6)) -> 9.757332654e-07 | J6: =(1-J38)-(SUM($D6:I6)) -> 5.551115123e-15 | K6: =(1-K38)-(SUM($D6:J6)) -> 0 | L6: =(1-L38)-(SUM($D6:K6)) -> 0 | M6: =(1-M38)-(SUM($D6:L6)) -> 0 | N6: =(1-N38)-(SUM($D6:M6)) -> 0 | O6: =(1-O38)-(SUM($D6:N6)) -> 0
B7: 2-year | D7: =1-D41 -> 0.1549421297 | E7: =(1-E41)-D7 -> 0.346157992 | F7: =(1-F41)-(SUM($D7:E7)) -> 0.3076953825 | G7: =(1-G41)-(SUM($D7:F7)) -> 0.1503770528 | H7: =(1-H41)-(SUM($D7:G7)) -> 0.03724113009 | I7: =(1-I41)-(SUM($D7:H7)) -> 0.003518149675 | J7: =(1-J41)-(SUM($D7:I7)) -> 6.810552233e-05 | K7: =(1-K41)-(SUM($D7:J7)) -> 5.777747203e-08 | L7: =(1-L41)-(SUM($D7:K7)) -> 1.321165399e-14 | M7: =(1-M41)-(SUM($D7:L7)) -> 0 | N7: =(1-N41)-(SUM($D7:M7)) -> 0 | O7: =(1-O41)-(SUM($D7:N7)) -> 0
B8: 2.5-year | D8: =1-D44 -> 0.1016011161 | E8: =(1-E44)-D8 -> 0.2524783894 | F8: =(1-F44)-(SUM($D8:E8)) -> 0.2842804346 | G8: =(1-G44)-(SUM($D8:F8)) -> 0.2119586857 | H8: =(1-H44)-(SUM($D8:G8)) -> 0.1078042642 | I8: =(1-I44)-(SUM($D8:H8)) -> 0.0350815904 | J8: =(1-J44)-(SUM($D8:I8)) -> 0.006308486504 | K8: =(1-K44)-(SUM($D8:J8)) -> 0.0004779042392 | L8: =(1-L44)-(SUM($D8:K8)) -> 9.11445522e-06 | M8: =(1-M44)-(SUM($D8:L8)) -> 1.434008312e-08 | N8: =(1-N44)-(SUM($D8:M8)) -> 9.370282328e-14 | O8: =(1-O44)-(SUM($D8:N8)) -> 0
B9: 3-year | D9: =1-D47 -> 0.07215127271 | E9: =(1-E47)-D9 -> 0.1896615634 | F9: =(1-F47)-(SUM($D9:E9)) -> 0.2409052774 | G9: =(1-G47)-(SUM($D9:F9)) -> 0.2200659026 | H9: =(1-H47)-(SUM($D9:G9)) -> 0.1539601252 | I9: =(1-I47)-(SUM($D9:H9)) -> 0.08197407691 | J9: =(1-J47)-(SUM($D9:I9)) -> 0.03175236089 | K9: =(1-K47)-(SUM($D9:J9)) -> 0.008214188516 | L9: =(1-L47)-(SUM($D9:K9)) -> 0.001229708148 | M9: =(1-M47)-(SUM($D9:L9)) -> 8.381636533e-05 | N9: =(1-N47)-(SUM($D9:M9)) -> 1.703472154e-06 | O9: =(1-O47)-(SUM($D9:N9)) -> 4.484889793e-09
B10: 3.5-year | D10: =1-D50 -> 0.05331466472 | E10: =(1-E50)-D10 -> 0.1451545883 | F10: =(1-F50)-(SUM($D10:E10)) -> 0.1984861371 | G10: =(1-G50)-(SUM($D10:F10)) -> 0.2044506782 | H10: =(1-H50)-(SUM($D10:G10)) -> 0.1711820659 | I10: =(1-I50)-(SUM($D10:H10)) -> 0.1182705745 | J10: =(1-J50)-(SUM($D10:I10)) -> 0.06669122041 | K10: =(1-K50)-(SUM($D10:J10)) -> 0.02977355784 | L10: =(1-L50)-(SUM($D10:K10)) -> 0.009993474377 | M10: =(1-M50)-(SUM($D10:L10)) -> 0.002326742599 | N10: =(1-N50)-(SUM($D10:M10)) -> 0.0003318446819 | O10: =(1-O50)-(SUM($D10:N10)) -> 2.382595888e-05
B11: 4-year | D11: =1-D53 -> 0.04123209211 | E11: =(1-E53)-D11 -> 0.1147784736 | F11: =(1-F53)-(SUM($D11:E11)) -> 0.1643434465 | G11: =(1-G53)-(SUM($D11:F11)) -> 0.1821654008 | H11: =(1-H53)-(SUM($D11:G11)) -> 0.1696535958 | I11: =(1-I53)-(SUM($D11:H11)) -> 0.1359685526 | J11: =(1-J53)-(SUM($D11:I11)) -> 0.09399398804 | K11: =(1-K53)-(SUM($D11:J11)) -> 0.05546333209 | L11: =(1-L53)-(SUM($D11:K11)) -> 0.027342491 | M11: =(1-M53)-(SUM($D11:L11)) -> 0.01088770842 | N11: =(1-N53)-(SUM($D11:M11)) -> 0.003331799377 | O11: =(1-O53)-(SUM($D11:N11)) -> 0.0007286800049 | P11: =(1-P53)-(SUM($D11:O11)) -> 0.0001023344306 | Q11: =(1-Q53)-(SUM($D11:P11)) -> 7.848446641e-06 | R11: =(1-R53)-(SUM($D11:Q11)) -> 2.545595509e-07 | S11: =(1-S53)-(SUM($D11:R11)) -> 2.269289312e-09
B12: 4.5-year | D12: =1-D56 -> 0.0327282268 | E12: =(1-E56)-D12 -> 0.09252884443 | F12: =(1-F56)-(SUM($D12:E12)) -> 0.1367745452 | G12: =(1-G56)-(SUM($D12:F12)) -> 0.1593866124 | H12: =(1-H56)-(SUM($D12:G12)) -> 0.1593897891 | I12: =(1-I56)-(SUM($D12:H12)) -> 0.1407119976 | J12: =(1-J56)-(SUM($D12:I12)) -> 0.1106140015 | K12: =(1-K56)-(SUM($D12:J12)) -> 0.07731276822 | L12: =(1-L56)-(SUM($D12:K12)) -> 0.04763134572 | M12: =(1-M56)-(SUM($D12:L12)) -> 0.02547324357 | N12: =(1-N56)-(SUM($D12:M12)) -> 0.01155948602 | O12: =(1-O56)-(SUM($D12:N12)) -> 0.004310178139 | P12: =(1-P56)-(SUM($D12:O12)) -> 0.001262661739 | Q12: =(1-Q56)-(SUM($D12:P12)) -> 0.000272916293 | R12: =(1-R56)-(SUM($D12:Q12)) -> 3.979983572e-05 | S12: =(1-S56)-(SUM($D12:R12)) -> 3.437043364e-06
B13: 5-year | D13: =1-D59 -> 0.02673071161 | E13: =(1-E59)-D13 -> 0.07639855515 | F13: =(1-F59)-(SUM($D13:E13)) -> 0.1154677375 | G13: =(1-G59)-(SUM($D13:F13)) -> 0.1392876015 | H13: =(1-H59)-(SUM($D13:G13)) -> 0.1462078725 | I13: =(1-I59)-(SUM($D13:H13)) -> 0.1376995918 | J13: =(1-J59)-(SUM($D13:I13)) -> 0.1177431833 | K13: =(1-K59)-(SUM($D13:J13)) -> 0.09167328773 | L13: =(1-L59)-(SUM($D13:K13)) -> 0.06481876308 | M13: =(1-M59)-(SUM($D13:L13)) -> 0.04132730301 | N13: =(1-N59)-(SUM($D13:M13)) -> 0.02349187386 | O13: =(1-O59)-(SUM($D13:N13)) -> 0.01171460206 | P13: =(1-P59)-(SUM($D13:O13)) -> 0.005013048979 | Q13: =(1-Q59)-(SUM($D13:P13)) -> 0.001787151219 | R13: =(1-R59)-(SUM($D13:Q13)) -> 0.0005099579735 | S13: =(1-S59)-(SUM($D13:R13)) -> 0.0001102954288 | T13: =(1-T59)-(SUM($D13:S13)) -> 1.676760572e-05 | U13: =(1-U59)-(SUM($D13:T13)) -> 1.610316554e-06 | V13: =(1-V59)-(SUM($D13:U13)) -> 8.361712678e-08
B14: 5.5-year | D14: =1-D62 -> 0.02218338036 | E14: =(1-E62)-D14 -> 0.06392499763 | F14: =(1-F62)-(SUM($D14:E14)) -> 0.09824459693 | G14: =(1-G62)-(SUM($D14:F14)) -> 0.1216118674 | H14: =(1-H62)-(SUM($D14:G14)) -> 0.1323155319 | I14: =(1-I62)-(SUM($D14:H14)) -> 0.1306451379 | J14: =(1-J62)-(SUM($D14:I14)) -> 0.1186743187 | K14: =(1-K62)-(SUM($D14:J14)) -> 0.09970749013 | L14: =(1-L62)-(SUM($D14:K14)) -> 0.07752876045 | M14: =(1-M62)-(SUM($D14:L14)) -> 0.05563587493 | N14: =(1-N62)-(SUM($D14:M14)) -> 0.03663944047 | O14: =(1-O62)-(SUM($D14:N14)) -> 0.02195578651 | P14: =(1-P62)-(SUM($D14:O14)) -> 0.01183267445 | Q14: =(1-Q62)-(SUM($D14:P14)) -> 0.00564717229 | R14: =(1-R62)-(SUM($D14:Q14)) -> 0.002338849473 | S14: =(1-S62)-(SUM($D14:R14)) -> 0.0008186625021 | T14: =(1-T62)-(SUM($D14:S14)) -> 0.0002338970369 | U14: =(1-U62)-(SUM($D14:T14)) -> 5.207905038e-05 | V14: =(1-V62)-(SUM($D14:U14)) -> 8.489563667e-06
B15: 6-year | D15: =1-D65 -> 0.01832899677 | E15: =(1-E65)-D15 -> 0.05316956656 | F15: =(1-F65)-(SUM($D15:E15)) -> 0.08282550107 | G15: =(1-G65)-(SUM($D15:F15)) -> 0.1046842009 | H15: =(1-H65)-(SUM($D15:G15)) -> 0.1172392924 | I15: =(1-I65)-(SUM($D15:H15)) -> 0.1202465399 | J15: =(1-J65)-(SUM($D15:I15)) -> 0.114662396 | K15: =(1-K65)-(SUM($D15:J15)) -> 0.1023864035 | L15: =(1-L65)-(SUM($D15:K15)) -> 0.08586682563 | M15: =(1-M65)-(SUM($D15:L15)) -> 0.06765405625 | N15: =(1-N65)-(SUM($D15:M15)) -> 0.04999271161 | O15: =(1-O65)-(SUM($D15:N15)) -> 0.03452906114 | P15: =(1-P65)-(SUM($D15:O15)) -> 0.02217880807 | Q15: =(1-Q65)-(SUM($D15:P15)) -> 0.01315912512 | R15: =(1-R65)-(SUM($D15:Q15)) -> 0.007149325729 | S15: =(1-S65)-(SUM($D15:R15)) -> 0.003517759296 | T15: =(1-T65)-(SUM($D15:S15)) -> 0.001546042139 | U15: =(1-U65)-(SUM($D15:T15)) -> 0.0005964706737 | V15: =(1-V65)-(SUM($D15:U15)) -> 0.0001976356101 | W15: =(1-W65)-(SUM($D15:V15)) -> 5.469966923e-05 | X15: =(1-X65)-(SUM($D15:W15)) -> 1.220337145e-05 | Y15: =(1-Y65)-(SUM($D15:X15)) -> 2.095433319e-06 | Z15: =(1-Z65)-(SUM($D15:Y15)) -> 2.605640357e-07
B16: 6.5-year | D16: =1-D68 -> 0.01560811258 | E16: =(1-E68)-D16 -> 0.04549929106 | F16: =(1-F68)-(SUM($D16:E16)) -> 0.071583426 | G16: =(1-G68)-(SUM($D16:F16)) -> 0.09185647489 | H16: =(1-H68)-(SUM($D16:G16)) -> 0.1050277626 | I16: =(1-I68)-(SUM($D16:H16)) -> 0.1106457279 | J16: =(1-J68)-(SUM($D16:I16)) -> 0.10909774 | K16: =(1-K68)-(SUM($D16:J16)) -> 0.1014893812 | L16: =(1-L68)-(SUM($D16:K16)) -> 0.08942901776 | M16: =(1-M68)-(SUM($D16:L16)) -> 0.07475886964 | N16: =(1-N68)-(SUM($D16:M16)) -> 0.05928116008 | O16: =(1-O68)-(SUM($D16:N16)) -> 0.04452581074 | P16: =(1-P68)-(SUM($D16:O16)) -> 0.03159496688 | Q16: =(1-Q68)-(SUM($D16:P16)) -> 0.02110181274 | R16: =(1-R68)-(SUM($D16:Q16)) -> 0.01320068719 | S16: =(1-S68)-(SUM($D16:R16)) -> 0.00768721464 | T16: =(1-T68)-(SUM($D16:S16)) -> 0.004135380806 | U16: =(1-U68)-(SUM($D16:T16)) -> 0.002035881211 | V16: =(1-V68)-(SUM($D16:U16)) -> 0.0009067161468 | W16: =(1-W68)-(SUM($D16:V16)) -> 0.0003601803859 | X16: =(1-X68)-(SUM($D16:W16)) -> 0.0001254032109 | Y16: =(1-Y68)-(SUM($D16:X16)) -> 3.744660639e-05 | Z16: =(1-Z68)-(SUM($D16:Y16)) -> 9.333188888e-06 | AA16: =(1-AA68)-(SUM($D16:Z16)) -> 1.87600072e-06
B17: 7-year | D17: =1-D71 -> 0.01352091937 | E17: =(1-E71)-D17 -> 0.03956361437 | F17: =(1-F71)-(SUM($D17:E17)) -> 0.06271982137 | G17: =(1-G71)-(SUM($D17:F17)) -> 0.0814197059 | H17: =(1-H71)-(SUM($D17:G17)) -> 0.09457391186 | I17: =(1-I71)-(SUM($D17:H17)) -> 0.1016713674 | J17: =(1-J71)-(SUM($D17:I17)) -> 0.102800366 | K17: =(1-K71)-(SUM($D17:J17)) -> 0.0985930564 | L17: =(1-L71)-(SUM($D17:K17)) -> 0.09010497137 | M17: =(1-M71)-(SUM($D17:L17)) -> 0.07865063322 | N17: =(1-N71)-(SUM($D17:M17)) -> 0.06562201884 | O17: =(1-O71)-(SUM($D17:N17)) -> 0.05231778485 | P17: =(1-P71)-(SUM($D17:O17)) -> 0.03980748344 | Q17: =(1-Q71)-(SUM($D17:P17)) -> 0.0288472772 | R17: =(1-R71)-(SUM($D17:Q17)) -> 0.01985341587 | S17: =(1-S71)-(SUM($D17:R17)) -> 0.01292903845 | T17: =(1-T71)-(SUM($D17:S17)) -> 0.007930893377 | U17: =(1-U71)-(SUM($D17:T17)) -> 0.004557139731 | V17: =(1-V71)-(SUM($D17:U17)) -> 0.002436479384 | W17: =(1-W71)-(SUM($D17:V17)) -> 0.001202329109 | X17: =(1-X71)-(SUM($D17:W17)) -> 0.0005423098215 | Y17: =(1-Y71)-(SUM($D17:X17)) -> 0.000220969986 | Z17: =(1-Z71)-(SUM($D17:Y17)) -> 8.018566935e-05 | AA17: =(1-AA71)-(SUM($D17:Z17)) -> 2.546820966e-05 | AB17: =(1-AB71)-(SUM($D17:AA17)) -> 8.838762884e-06
B19: Nets
B20: 1-year | C20: 100 | D20: =C20-($C20*D5) -> 50.0274907 | E20: =D20-($C20*E5) -> 4.012130867 | F20: 0.005095302781 | G20: 2.664535259e-14 | H20: 2.664535259e-14 | I20: 2.664535259e-14 | J20: 2.664535259e-14
B21: 1.5-year | C21: 100 | D21: 74.22374341 | E21: =D21-($C21*E6) -> 28.2141252 | F21: 4.197966944 | G21: 0.1227233829 | H21: 9.757332711e-05 | I21: 5.648814749e-13 | J21: 9.769962617e-15
B22: 2-year | C22: 100 | D22: 84.50578703 | E22: =D22-($C22*E7) -> 49.88998784 | F22: 19.12044959 | G22: 4.082744306 | H22: 0.3586312975 | I22: 0.006816329982 | J22: 5.777748516e-06
B23: 2.5-year | C23: 100 | D23: 89.83988839 | E23: 64.59204945 | F23: 36.16400599 | G23: 14.96813742 | H23: 4.187710994 | I23: 0.6795519538 | J23: 0.04870330346
B24: 3-year | C24: 100 | D24: 92.78487273 | E24: 73.81871639 | F24: 49.72818865 | G24: 27.7215984 | H24: 12.32558588 | I24: 4.128178188 | J24: 0.9529420987 | K24: =J24-($C24*K9) -> 0.1315232471 | L24: 0.00855243226 | M24: 0.0001707957265 | N24: 4.485110954e-07 | O24: 2.211608674e-11
B25: 3.5-year | C25: 100 | D25: 94.66853353 | E25: 80.1530747 | F25: 60.30446098 | G25: 39.85939316 | H25: 22.74118658 | I25: 10.91412912 | J25: 4.245007083 | K25: 1.2676513 | L25: 0.2683038621 | M25: 0.0356296022 | N25: 0.002445134006 | O25: 6.253811807e-05
B26: 4-year | C26: 100 | D26: 95.87679079 | E26: 84.39894343 | F26: 67.96459878 | G26: 49.7480587 | H26: 32.78269912 | I26: 19.18584386 | J26: 9.78644506 | K26: 4.240111851 | L26: 1.505862751 | M26: 0.417091909 | N26: 0.08391197134 | O26: 0.01104397086 | P26: =O26-($C26*P11) -> 0.0008105277982
B27: 4.5-year | C27: 100 | D27: 96.72717732 | E27: 87.47429288 | F27: 73.79683836 | G27: 57.85817712 | H27: 41.91919822 | I27: 27.84799846 | J27: 16.78659831 | K27: 9.055321485 | L27: 4.292186913 | M27: 1.744862556 | N27: 0.588913954 | O27: 0.1578961401 | P27: =O27-($C27*P12) -> 0.03162996618
B28: 5-year | C28: 100 | D28: 97.32692884 | E28: 89.68707332 | F28: 78.14029958 | G28: 64.21153943 | H28: 49.59075218 | I28: 35.820793 | J28: 24.04647467 | K28: 14.8791459 | L28: 8.397269593 | M28: 4.264539292 | N28: 1.915351906 | O28: 0.7438917006 | P28: =O28-($C28*P13) -> 0.2425868026 | Q28: =P28-($C28*Q13) -> 0.06387168074 | R28: =Q28-($C28*R13) -> 0.01287588339
B29: 5.5-year | C29: 100 | D29: 97.78166196 | E29: 91.3891622 | F29: 81.56470251 | G29: 69.40351577 | H29: 56.17196258 | I29: 43.10744878 | J29: 31.24001691 | K29: 21.2692679 | L29: 13.51639185 | M29: 7.952804362 | N29: 4.288860315 | O29: 2.093281664 | P29: =O29-($C29*P14) -> 0.9100142187 | Q29: =P29-($C29*Q14) -> 0.3452969897 | R29: =Q29-($C29*R14) -> 0.1114120424
B30: 6-year | C30: 100 | D30: =C30-($C$30*D15) -> 98.16710032 | E30: =D30-($C$30*E15) -> 92.85014367 | F30: 84.56759356 | G30: 74.09917347 | H30: 62.37524423 | I30: 50.35059024 | J30: 38.88435065 | K30: 28.6457103 | L30: 20.05902774 | M30: 13.29362211 | N30: 8.294350954 | O30: 4.84144484 | P30: 2.623564032 | Q30: 1.307651521 | R30: 0.5927189477 | S30: 0.2409430181 | T30: 0.08633880422
B31: 6.5-year | C31: 100 | D31: =C31-($C$30*D16) -> 98.43918874 | E31: =D31-($C$30*E16) -> 93.88925964 | F31: =E31-($C$30*F16) -> 86.73091704 | G31: =F31-($C$30*G16) -> 77.54526955 | H31: =G31-($C$30*H16) -> 67.04249329 | I31: =H31-($C$30*I16) -> 55.9779205 | J31: =I31-($C$30*J16) -> 45.0681465 | K31: =J31-($C$30*K16) -> 34.91920838 | L31: =K31-($C$30*L16) -> 25.9763066 | M31: =L31-($C$30*M16) -> 18.50041964 | N31: =M31-($C$30*N16) -> 12.57230363 | O31: =N31-($C$30*O16) -> 8.119722556 | P31: =O31-($C$30*P16) -> 4.960225868 | Q31: =P31-($C$30*Q16) -> 2.850044594 | R31: =Q31-($C$30*R16) -> 1.529975875 | S31: =R31-($C$30*S16) -> 0.7612544105 | T31: =S31-($C$30*T16) -> 0.3477163299
B32: 7-year | C32: 100 | D32: =C32-($C$32*D17) -> 98.64790806 | E32: =D32-($C$32*E17) -> 94.69154663 | F32: 88.41956449 | G32: 80.2775939 | H32: 70.82020271 | I32: 60.65306597 | J32: 50.37302937 | K32: 40.51372373 | L32: 31.50322659 | M32: 23.63816327 | N32: 17.07596139 | O32: 11.8441829 | P32: 7.863434557 | Q32: 4.978706837 | R32: 2.99336525 | S32: 1.700461405 | T32: 0.9073720674 | U32: 0.4516580943 | V32: 0.2080101559 | W32: 0.08777724494 | X32: 0.03354626279 | Y32: 0.01144926419
B34: Net decay
B35: 1-year | D35: =IF(D$3<$C$36, EXP($C$37-($C$37/(1-((D$3/$C$36)*(D$3/$C$36))))), 0) -> 0.500274907 | E35: =IF(E$3<$C$36, EXP($C$37-($C$37/(1-((E$3/$C$36)*(E$3/$C$36))))), 0) -> 0.04012130867 | F35: 5.095302781e-05 | G35: 2.208546952e-16 | H35: 0 | I35: 0 | J35: 0 | K35: 0 | L35: 0 | M35: 0 | N35: 0 | O35: 0 | P35: 0 | Q35: 0 | R35: 0 | S35: 0 | T35: 0 | U35: 0 | V35: 0 | W35: 0 | X35: 0 | Y35: 0 | Z35: 0 | AA35: 0
B36: L | C36: 4.76
B37: k | C37: 15
B38: 1.5-year | D38: =IF(D$3<$C$39, EXP($C$40-($C$40/(1-((D$3/$C$39)*(D$3/$C$39))))), 0) -> 0.7422374341 | E38: =IF(E$3<$C$39, EXP($C$40-($C$40/(1-((E$3/$C$39)*(E$3/$C$39))))), 0) -> 0.282141252 | F38: 0.04197966944 | G38: 0.001227233829 | H38: 9.75733271e-07 | I38: 5.540902641e-15 | J38: 3.201381151e-83 | K38: 0 | L38: 0 | M38: 0 | N38: 0 | O38: 0 | P38: 0 | Q38: 0 | R38: 0 | S38: 0 | T38: 0 | U38: 0 | V38: 0 | W38: 0 | X38: 0 | Y38: 0 | Z38: 0 | AA38: =IF(AA$3<$C$36, EXP($C$37-($C$37/(1-((AA$3/$C$36)*(AA$3/$C$36))))), 0) -> 0
B39: L | C39: 7.28
B40: k | C40: 15.5
B41: 2-year | D41: =IF(D$3<$C42, EXP($C43-($C43/(1-((D$3/$C42)*(D$3/$C42))))), 0) -> 0.8450578703 | E41: =IF(E$3<$C42, EXP($C43-($C43/(1-((E$3/$C42)*(E$3/$C42))))), 0) -> 0.4988998784 | F41: 0.1912044959 | G41: 0.04082744306 | H41: 0.003586312975 | I41: 6.816329982e-05 | J41: 5.777748519e-08 | K41: 1.318034174e-14 | L41: 3.773567226e-38 | M41: 0 | N41: 0 | O41: 0 | P41: 0 | Q41: 0 | R41: 0 | S41: 0 | T41: 0 | U41: 0 | V41: 0 | W41: 0 | X41: 0 | Y41: 0 | Z41: 0 | AA41: 0
B42: L | C42: 9.8
B43: k | C43: 16
B44: 2.5-year | D44: =IF(D$3<$C45, EXP($C46-($C46/(1-((D$3/$C45)*(D$3/$C45))))), 0) -> 0.8983988839 | E44: =IF(E$3<$C45, EXP($C46-($C46/(1-((E$3/$C45)*(E$3/$C45))))), 0) -> 0.6459204945 | F44: =IF(F$3<$C45, EXP($C46-($C46/(1-((F$3/$C45)*(F$3/$C45))))), 0) -> 0.3616400599 | G44: =IF(G$3<$C45, EXP($C46-($C46/(1-((G$3/$C45)*(G$3/$C45))))), 0) -> 0.1496813742 | H44: =IF(H$3<$C45, EXP($C46-($C46/(1-((H$3/$C45)*(H$3/$C45))))), 0) -> 0.04187710994 | I44: =IF(I$3<$C45, EXP($C46-($C46/(1-((I$3/$C45)*(I$3/$C45))))), 0) -> 0.006795519538 | J44: =IF(J$3<$C45, EXP($C46-($C46/(1-((J$3/$C45)*(J$3/$C45))))), 0) -> 0.0004870330346 | K44: =IF(K$3<$C45, EXP($C46-($C46/(1-((K$3/$C45)*(K$3/$C45))))), 0) -> 9.128795397e-06 | L44: =IF(L$3<$C45, EXP($C46-($C46/(1-((L$3/$C45)*(L$3/$C45))))), 0) -> 1.434017685e-08 | M44: =IF(M$3<$C45, EXP($C46-($C46/(1-((M$3/$C45)*(M$3/$C45))))), 0) -> 9.370391487e-14 | N44: =IF(N$3<$C45, EXP($C46-($C46/(1-((N$3/$C45)*(N$3/$C45))))), 0) -> 3.161167924e-26 | O44: =IF(O$3<$C45, EXP($C46-($C46/(1-((O$3/$C45)*(O$3/$C45))))), 0) -> 1.635712511e-94 | P44: =IF(P$3<$C45, EXP($C46-($C46/(1-((P$3/$C45)*(P$3/$C45))))), 0) -> 0 | Q44: =IF(Q$3<$C45, EXP($C46-($C46/(1-((Q$3/$C45)*(Q$3/$C45))))), 0) -> 0 | R44: =IF(R$3<$C45, EXP($C46-($C46/(1-((R$3/$C45)*(R$3/$C45))))), 0) -> 0 | S44: =IF(S$3<$C45, EXP($C46-($C46/(1-((S$3/$C45)*(S$3/$C45))))), 0) -> 0 | T44: =IF(T$3<$C45, EXP($C46-($C46/(1-((T$3/$C45)*(T$3/$C45))))), 0) -> 0 | U44: =IF(U$3<$C45, EXP($C46-($C46/(1-((U$3/$C45)*(U$3/$C45))))), 0) -> 0 | V44: =IF(V$3<$C45, EXP($C46-($C46/(1-((V$3/$C45)*(V$3/$C45))))), 0) -> 0 | W44: =IF(W$3<$C45, EXP($C46-($C46/(1-((W$3/$C45)*(W$3/$C45))))), 0) -> 0 | X44: =IF(X$3<$C45, EXP($C46-($C46/(1-((X$3/$C45)*(X$3/$C45))))), 0) -> 0 | Y44: =IF(Y$3<$C45, EXP($C46-($C46/(1-((Y$3/$C45)*(Y$3/$C45))))), 0) -> 0 | Z44: =IF(Z$3<$C45, EXP($C46-($C46/(1-((Z$3/$C45)*(Z$3/$C45))))), 0) -> 0 | AA44: =IF(AA$3<$C45, EXP($C46-($C46/(1-((AA$3/$C45)*(AA$3/$C45))))), 0) -> 0
B45: L | C45: =(C42+C48)/2 -> 12.45
B46: k | C46: 16.5
B47: 3-year | D47: =IF(D$3<$C48, EXP($C49-($C49/(1-((D$3/$C48)*(D$3/$C48))))), 0) -> 0.9278487273 | E47: =IF(E$3<$C48, EXP($C49-($C49/(1-((E$3/$C48)*(E$3/$C48))))), 0) -> 0.7381871639 | F47: 0.4972818865 | G47: 0.277215984 | H47: 0.1232558588 | I47: 0.04128178188 | J47: 0.009529420987 | K47: 0.001315232471 | L47: 8.55243226e-05 | M47: 1.707957265e-06 | N47: 4.485111102e-09 | O47: 2.212710071e-13 | P47: 7.172173656e-22 | Q47: 6.2117532e-46 | R47: 0 | S47: 0 | T47: 0 | U47: 0 | V47: 0 | W47: 0 | X47: 0 | Y47: 0 | Z47: 0 | AA47: 0
B48: L | C48: 15.1
B49: k | C49: 17
B50: 3.5-year | D50: =IF(D$3<$C51, EXP($C52-($C52/(1-((D$3/$C51)*(D$3/$C51))))), 0) -> 0.9466853353 | E50: =IF(E$3<$C51, EXP($C52-($C52/(1-((E$3/$C51)*(E$3/$C51))))), 0) -> 0.801530747 | F50: =IF(F$3<$C51, EXP($C52-($C52/(1-((F$3/$C51)*(F$3/$C51))))), 0) -> 0.6030446098 | G50: =IF(G$3<$C51, EXP($C52-($C52/(1-((G$3/$C51)*(G$3/$C51))))), 0) -> 0.3985939316 | H50: =IF(H$3<$C51, EXP($C52-($C52/(1-((H$3/$C51)*(H$3/$C51))))), 0) -> 0.2274118658 | I50: =IF(I$3<$C51, EXP($C52-($C52/(1-((I$3/$C51)*(I$3/$C51))))), 0) -> 0.1091412912 | J50: =IF(J$3<$C51, EXP($C52-($C52/(1-((J$3/$C51)*(J$3/$C51))))), 0) -> 0.04245007083 | K50: =IF(K$3<$C51, EXP($C52-($C52/(1-((K$3/$C51)*(K$3/$C51))))), 0) -> 0.012676513 | L50: =IF(L$3<$C51, EXP($C52-($C52/(1-((L$3/$C51)*(L$3/$C51))))), 0) -> 0.002683038621 | M50: =IF(M$3<$C51, EXP($C52-($C52/(1-((M$3/$C51)*(M$3/$C51))))), 0) -> 0.000356296022 | N50: =IF(N$3<$C51, EXP($C52-($C52/(1-((N$3/$C51)*(N$3/$C51))))), 0) -> 2.445134006e-05 | O50: =IF(O$3<$C51, EXP($C52-($C52/(1-((O$3/$C51)*(O$3/$C51))))), 0) -> 6.253811808e-07 | P50: =IF(P$3<$C51, EXP($C52-($C52/(1-((P$3/$C51)*(P$3/$C51))))), 0) -> 3.287771225e-09 | Q50: =IF(Q$3<$C51, EXP($C52-($C52/(1-((Q$3/$C51)*(Q$3/$C51))))), 0) -> 1.062782105e-12 | R50: =IF(R$3<$C51, EXP($C52-($C52/(1-((R$3/$C51)*(R$3/$C51))))), 0) -> 1.193956624e-18 | S50: =IF(S$3<$C51, EXP($C52-($C52/(1-((S$3/$C51)*(S$3/$C51))))), 0) -> 6.20726802e-31 | T50: =IF(T$3<$C51, EXP($C52-($C52/(1-((T$3/$C51)*(T$3/$C51))))), 0) -> 1.179813508e-70 | U50: =IF(U$3<$C51, EXP($C52-($C52/(1-((U$3/$C51)*(U$3/$C51))))), 0) -> 0 | V50: =IF(V$3<$C51, EXP($C52-($C52/(1-((V$3/$C51)*(V$3/$C51))))), 0) -> 0 | W50: =IF(W$3<$C51, EXP($C52-($C52/(1-((W$3/$C51)*(W$3/$C51))))), 0) -> 0 | X50: =IF(X$3<$C51, EXP($C52-($C52/(1-((X$3/$C51)*(X$3/$C51))))), 0) -> 0 | Y50: =IF(Y$3<$C51, EXP($C52-($C52/(1-((Y$3/$C51)*(Y$3/$C51))))), 0) -> 0 | Z50: =IF(Z$3<$C51, EXP($C52-($C52/(1-((Z$3/$C51)*(Z$3/$C51))))), 0) -> 0 | AA50: =IF(AA$3<$C51, EXP($C52-($C52/(1-((AA$3/$C51)*(AA$3/$C51))))), 0) -> 0
B51: L | C51: =(C48+C54)/2 -> 17.9
B52: k | C52: 17.5
B53: 4-year | D53: =IF(D$3<$C54, EXP($C55-($C55/(1-((D$3/$C54)*(D$3/$C54))))), 0) -> 0.9587679079 | E53: =IF(E$3<$C54, EXP($C55-($C55/(1-((E$3/$C54)*(E$3/$C54))))), 0) -> 0.8439894343 | F53: 0.6796459878 | G53: 0.497480587 | H53: 0.3278269912 | I53: 0.1918584386 | J53: 0.0978644506 | K53: 0.04240111851 | L53: 0.01505862751 | M53: 0.00417091909 | N53: 0.0008391197134 | O53: 0.0001104397086 | P53: 8.105277982e-06 | Q53: 2.568313405e-07 | R53: 2.271789656e-09 | S53: 2.500345608e-12 | T53: 6.365868469e-17 | U53: 5.758481644e-25 | V53: 1.533639084e-42 | W53: 1.757878192e-110 | X53: 0 | Y53: 0 | Z53: 0 | AA53: 0
B54: L | C54: 20.7
B55: k | C55: 18
B56: 4.5-year | D56: =IF(D$3<$C57, EXP($C58-($C58/(1-((D$3/$C57)*(D$3/$C57))))), 0) -> 0.9672717732 | E56: =IF(E$3<$C57, EXP($C58-($C58/(1-((E$3/$C57)*(E$3/$C57))))), 0) -> 0.8747429288 | F56: =IF(F$3<$C57, EXP($C58-($C58/(1-((F$3/$C57)*(F$3/$C57))))), 0) -> 0.7379683836 | G56: =IF(G$3<$C57, EXP($C58-($C58/(1-((G$3/$C57)*(G$3/$C57))))), 0) -> 0.5785817712 | H56: =IF(H$3<$C57, EXP($C58-($C58/(1-((H$3/$C57)*(H$3/$C57))))), 0) -> 0.4191919822 | I56: =IF(I$3<$C57, EXP($C58-($C58/(1-((I$3/$C57)*(I$3/$C57))))), 0) -> 0.2784799846 | J56: =IF(J$3<$C57, EXP($C58-($C58/(1-((J$3/$C57)*(J$3/$C57))))), 0) -> 0.1678659831 | K56: =IF(K$3<$C57, EXP($C58-($C58/(1-((K$3/$C57)*(K$3/$C57))))), 0) -> 0.09055321485 | L56: =IF(L$3<$C57, EXP($C58-($C58/(1-((L$3/$C57)*(L$3/$C57))))), 0) -> 0.04292186913 | M56: =IF(M$3<$C57, EXP($C58-($C58/(1-((M$3/$C57)*(M$3/$C57))))), 0) -> 0.01744862556 | N56: =IF(N$3<$C57, EXP($C58-($C58/(1-((N$3/$C57)*(N$3/$C57))))), 0) -> 0.00588913954 | O56: =IF(O$3<$C57, EXP($C58-($C58/(1-((O$3/$C57)*(O$3/$C57))))), 0) -> 0.001578961401 | P56: =IF(P$3<$C57, EXP($C58-($C58/(1-((P$3/$C57)*(P$3/$C57))))), 0) -> 0.0003162996618 | Q56: =IF(Q$3<$C57, EXP($C58-($C58/(1-((Q$3/$C57)*(Q$3/$C57))))), 0) -> 4.338336882e-05 | R56: =IF(R$3<$C57, EXP($C58-($C58/(1-((R$3/$C57)*(R$3/$C57))))), 0) -> 3.5835331e-06 | S56: =IF(S$3<$C57, EXP($C58-($C58/(1-((S$3/$C57)*(S$3/$C57))))), 0) -> 1.464897359e-07 | T56: =IF(T$3<$C57, EXP($C58-($C58/(1-((T$3/$C57)*(T$3/$C57))))), 0) -> 2.161194268e-09 | U56: =IF(U$3<$C57, EXP($C58-($C58/(1-((U$3/$C57)*(U$3/$C57))))), 0) -> 6.694471958e-12 | V56: =IF(V$3<$C57, EXP($C58-($C58/(1-((V$3/$C57)*(V$3/$C57))))), 0) -> 1.580658465e-15 | W56: =IF(W$3<$C57, EXP($C58-($C58/(1-((W$3/$C57)*(W$3/$C57))))), 0) -> 3.348516226e-21 | X56: =IF(X$3<$C57, EXP($C58-($C58/(1-((X$3/$C57)*(X$3/$C57))))), 0) -> 2.784255707e-31 | Y56: =IF(Y$3<$C57, EXP($C58-($C58/(1-((Y$3/$C57)*(Y$3/$C57))))), 0) -> 5.026954432e-54 | Z56: =IF(Z$3<$C57, EXP($C58-($C58/(1-((Z$3/$C57)*(Z$3/$C57))))), 0) -> 9.753600887e-153 | AA56: =IF(AA$3<$C57, EXP($C58-($C58/(1-((AA$3/$C57)*(AA$3/$C57))))), 0) -> 0
B57: L | C57: =(C54+C60)/2 -> 23.6
B58: k | C58: 18.5
B59: 5-year | D59: =IF(D$3<$C60, EXP($C61-($C61/(1-((D$3/$C60)*(D$3/$C60))))), 0) -> 0.9732692884 | E59: 0.8968707332 | F59: 0.7814029958 | G59: 0.6421153943 | H59: 0.4959075218 | I59: 0.35820793 | J59: 0.2404647467 | K59: 0.148791459 | L59: 0.08397269593 | M59: 0.04264539292 | N59: 0.01915351906 | O59: 0.007438917006 | P59: 0.002425868026 | Q59: 0.0006387168074 | R59: 0.0001287588339 | S59: 1.846340509e-05 | T59: 1.695799373e-06 | U59: 8.548281891e-08 | V59: 1.8656922e-09 | W59: 1.20164121e-11 | X59: 1.177582996e-14 | Y59: 5.022614792e-19 | Z59: 6.377539747e-26 | AA59: 2.254853533e-38
B60: L | C60: 26.5
B61: k | C61: 19
B62: 5.5-year | D62: =IF(D$3<$C63, EXP($C64-($C64/(1-((D$3/$C63)*(D$3/$C63))))), 0) -> 0.9778166196 | E62: =IF(E$3<$C63, EXP($C64-($C64/(1-((E$3/$C63)*(E$3/$C63))))), 0) -> 0.913891622 | F62: =IF(F$3<$C63, EXP($C64-($C64/(1-((F$3/$C63)*(F$3/$C63))))), 0) -> 0.8156470251 | G62: =IF(G$3<$C63, EXP($C64-($C64/(1-((G$3/$C63)*(G$3/$C63))))), 0) -> 0.6940351577 | H62: =IF(H$3<$C63, EXP($C64-($C64/(1-((H$3/$C63)*(H$3/$C63))))), 0) -> 0.5617196258 | I62: =IF(I$3<$C63, EXP($C64-($C64/(1-((I$3/$C63)*(I$3/$C63))))), 0) -> 0.4310744878 | J62: =IF(J$3<$C63, EXP($C64-($C64/(1-((J$3/$C63)*(J$3/$C63))))), 0) -> 0.3124001691 | K62: =IF(K$3<$C63, EXP($C64-($C64/(1-((K$3/$C63)*(K$3/$C63))))), 0) -> 0.212692679 | L62: =IF(L$3<$C63, EXP($C64-($C64/(1-((L$3/$C63)*(L$3/$C63))))), 0) -> 0.1351639185 | M62: =IF(M$3<$C63, EXP($C64-($C64/(1-((M$3/$C63)*(M$3/$C63))))), 0) -> 0.07952804362 | N62: =IF(N$3<$C63, EXP($C64-($C64/(1-((N$3/$C63)*(N$3/$C63))))), 0) -> 0.04288860315 | O62: =IF(O$3<$C63, EXP($C64-($C64/(1-((O$3/$C63)*(O$3/$C63))))), 0) -> 0.02093281664 | P62: =IF(P$3<$C63, EXP($C64-($C64/(1-((P$3/$C63)*(P$3/$C63))))), 0) -> 0.009100142187 | Q62: =IF(Q$3<$C63, EXP($C64-($C64/(1-((Q$3/$C63)*(Q$3/$C63))))), 0) -> 0.003452969897 | R62: =IF(R$3<$C63, EXP($C64-($C64/(1-((R$3/$C63)*(R$3/$C63))))), 0) -> 0.001114120424 | S62: =IF(S$3<$C63, EXP($C64-($C64/(1-((S$3/$C63)*(S$3/$C63))))), 0) -> 0.0002954579221 | T62: =IF(T$3<$C63, EXP($C64-($C64/(1-((T$3/$C63)*(T$3/$C63))))), 0) -> 6.156088512e-05 | U62: =IF(U$3<$C63, EXP($C64-($C64/(1-((U$3/$C63)*(U$3/$C63))))), 0) -> 9.481834734e-06 | V62: =IF(V$3<$C63, EXP($C64-($C64/(1-((V$3/$C63)*(V$3/$C63))))), 0) -> 9.92271067e-07 | W62: =IF(W$3<$C63, EXP($C64-($C64/(1-((W$3/$C63)*(W$3/$C63))))), 0) -> 6.257363272e-08 | X62: =IF(X$3<$C63, EXP($C64-($C64/(1-((X$3/$C63)*(X$3/$C63))))), 0) -> 1.992691004e-09 | Y62: =IF(Y$3<$C63, EXP($C64-($C64/(1-((Y$3/$C63)*(Y$3/$C63))))), 0) -> 2.443629824e-11 | Z62: =IF(Z$3<$C63, EXP($C64-($C64/(1-((Z$3/$C63)*(Z$3/$C63))))), 0) -> 7.44557483e-14 | AA62: =IF(AA$3<$C63, EXP($C64-($C64/(1-((AA$3/$C63)*(AA$3/$C63))))), 0) -> 2.644081672e-17
B63: L | C63: 29.5
B64: k | C64: 19.5
B65: 6-year | D65: =IF(D$3<$C66, EXP($C67-($C67/(1-((D$3/$C66)*(D$3/$C66))))), 0) -> 0.9816710032 | E65: 0.9285014367 | F65: 0.8456759356 | G65: 0.7409917347 | H65: 0.6237524423 | I65: 0.5035059024 | J65: 0.3888435065 | K65: 0.286457103 | L65: 0.2005902774 | M65: 0.1329362211 | N65: 0.08294350954 | O65: 0.0484144484 | P65: 0.02623564032 | Q65: 0.01307651521 | R65: 0.005927189477 | S65: 0.002409430181 | T65: 0.0008633880422 | U65: 0.0002669173685 | V65: 6.928175849e-05 | W65: 1.458208926e-05 | X65: 2.378717814e-06 | Y65: 2.832844956e-07 | Z65: 2.272045993e-08 | AA65: 1.09771331e-09
B66: L | C66: 34.5
B67: k | C67: 22
B68: 6.5-year | D68: =IF(D$3<$C69, EXP($C70-($C70/(1-((D$3/$C69)*(D$3/$C69))))), 0) -> 0.9843918874 | E68: =IF(E$3<$C69, EXP($C70-($C70/(1-((E$3/$C69)*(E$3/$C69))))), 0) -> 0.9388925964 | F68: =IF(F$3<$C69, EXP($C70-($C70/(1-((F$3/$C69)*(F$3/$C69))))), 0) -> 0.8673091704 | G68: =IF(G$3<$C69, EXP($C70-($C70/(1-((G$3/$C69)*(G$3/$C69))))), 0) -> 0.7754526955 | H68: =IF(H$3<$C69, EXP($C70-($C70/(1-((H$3/$C69)*(H$3/$C69))))), 0) -> 0.6704249329 | I68: =IF(I$3<$C69, EXP($C70-($C70/(1-((I$3/$C69)*(I$3/$C69))))), 0) -> 0.559779205 | J68: =IF(J$3<$C69, EXP($C70-($C70/(1-((J$3/$C69)*(J$3/$C69))))), 0) -> 0.450681465 | K68: =IF(K$3<$C69, EXP($C70-($C70/(1-((K$3/$C69)*(K$3/$C69))))), 0) -> 0.3491920838 | L68: =IF(L$3<$C69, EXP($C70-($C70/(1-((L$3/$C69)*(L$3/$C69))))), 0) -> 0.259763066 | M68: =IF(M$3<$C69, EXP($C70-($C70/(1-((M$3/$C69)*(M$3/$C69))))), 0) -> 0.1850041964 | N68: =IF(N$3<$C69, EXP($C70-($C70/(1-((N$3/$C69)*(N$3/$C69))))), 0) -> 0.1257230363 | O68: =IF(O$3<$C69, EXP($C70-($C70/(1-((O$3/$C69)*(O$3/$C69))))), 0) -> 0.08119722556 | P68: =IF(P$3<$C69, EXP($C70-($C70/(1-((P$3/$C69)*(P$3/$C69))))), 0) -> 0.04960225868 | Q68: =IF(Q$3<$C69, EXP($C70-($C70/(1-((Q$3/$C69)*(Q$3/$C69))))), 0) -> 0.02850044594 | R68: =IF(R$3<$C69, EXP($C70-($C70/(1-((R$3/$C69)*(R$3/$C69))))), 0) -> 0.01529975875 | S68: =IF(S$3<$C69, EXP($C70-($C70/(1-((S$3/$C69)*(S$3/$C69))))), 0) -> 0.007612544105 | T68: =IF(T$3<$C69, EXP($C70-($C70/(1-((T$3/$C69)*(T$3/$C69))))), 0) -> 0.003477163299 | U68: =IF(U$3<$C69, EXP($C70-($C70/(1-((U$3/$C69)*(U$3/$C69))))), 0) -> 0.001441282089 | V68: =IF(V$3<$C69, EXP($C70-($C70/(1-((V$3/$C69)*(V$3/$C69))))), 0) -> 0.0005345659418 | W68: =IF(W$3<$C69, EXP($C70-($C70/(1-((W$3/$C69)*(W$3/$C69))))), 0) -> 0.0001743855558 | X68: =IF(X$3<$C69, EXP($C70-($C70/(1-((X$3/$C69)*(X$3/$C69))))), 0) -> 4.89823449e-05 | Y68: =IF(Y$3<$C69, EXP($C70-($C70/(1-((Y$3/$C69)*(Y$3/$C69))))), 0) -> 1.153573851e-05 | Z68: =IF(Z$3<$C69, EXP($C70-($C70/(1-((Z$3/$C69)*(Z$3/$C69))))), 0) -> 2.202549625e-06 | AA68: =IF(AA$3<$C69, EXP($C70-($C70/(1-((AA$3/$C69)*(AA$3/$C69))))), 0) -> 3.265489053e-07
B69: L | C69: =(C66+C72)/2 -> 38.25
B70: k | C70: 23
B71: 7-year | D71: =IF(D$3<$C72, EXP($C73-($C73/(1-((D$3/$C72)*(D$3/$C72))))), 0) -> 0.9864790806 | E71: 0.9469154663 | F71: 0.8841956449 | G71: 0.802775939 | H71: 0.7082020271 | I71: 0.6065306597 | J71: 0.5037302937 | K71: 0.4051372373 | L71: 0.3150322659 | M71: 0.2363816327 | N71: 0.1707596139 | O71: 0.118441829 | P71: 0.07863434557 | Q71: 0.04978706837 | R71: 0.0299336525 | S71: 0.01700461405 | T71: 0.009073720674 | U71: 0.004516580943 | V71: 0.002080101559 | W71: 0.0008777724494 | X71: 0.0003354626279 | Y71: 0.0001144926419 | Z71: 3.430697254e-05 | AA71: 8.838762884e-06
B72: L | C72: 42
B73: k | C73: 24
V89: =U89-($C$32*V81) -> 0 | W89: =V89-($C$32*W81) -> 0 | X89: =W89-($C$32*X81) -> 0

Sheet survival data 2
B1: Tool to plot net survival and estimate median survival time
B3: Plotting functional survival | J3: Developed by Albert Kilian
B5: Location/Brand: | C5: B | F5: Data description:
C7: years* | D7: survival (%) | E7: 95% CI low | F7: 95% CI high
C8: 0 | D8: 100 | E8: 100 | F8: 100 | G8: =D8-E8 -> 0 | H8: =F8-D8 -> 0 | J8: Decimal year calculator
G9: 0 | H9: 0 | J9: Months | K9: in years
G10: 0 | H10: 0 | J10: 0 | K10: =J10/12 -> 0
G11: 0 | H11: 0
G12: 0 | H12: 0
G13: 0 | H13: 0 | O13: This tool was developed as part of the NetWorks Project
C14: * since distribution | O14: with funding from USAID/PMI
O15: Cooperative Agreement No. GHS-A‐00‐09-00014-00
B16: Median survival calculator | J16: Formula for median survival
C18: time (yrs) | E18: survival (%) | F18: 95% CI low | G18: 95% CI high
B19: t1 | D19: p1
B20: t2 | D20: p2 | J20: tm= | K20: median survival
J21: t1= | K21: first time point (years since distribution)
C22: tm | D22: 95% CI low | E22: 95% CI high | J22: t2= | K22: second time point
C23: =IF( AND(C19>0, C20>0,E19>0, E20>0), C19+((C20-C19)*(E19-50)/(E19-E20)), " ") ->  | D23: =IF(AND(C19>0, C20>0, F19>0, F20>0), C19+((C20-C19)*(F19-50)/(F19-F20)), " ") ->  | E23: =IF(AND(C19>0, C20>0, G19>0, G20>0), C19+((C20-C19)*(G19-50)/(G19-G20)), " ") ->  | J23: p1= | K23: functional survival at t1
J25: p2= | K25: functional survival at t2

Sheet survival data 3
B1: Tool to plot net survival and estimate median survival time
B3: Plotting functional survival | J3: Developed by Albert Kilian
B5: Location/Brand: | C5: C | F5: Data description:
C7: years* | D7: survival (%) | E7: 95% CI low | F7: 95% CI high
C8: 0 | D8: 100 | E8: 100 | F8: 100 | G8: =D8-E8 -> 0 | H8: =F8-D8 -> 0 | J8: Decimal year calculator
G9: 0 | H9: 0 | J9: Months | K9: in years
G10: 0 | H10: 0 | J10: 0 | K10: =J10/12 -> 0
G11: 0 | H11: 0
G12: 0 | H12: 0
G13: 0 | H13: 0 | O13: This tool was developed as part of the NetWorks Project
C14: * since distribution | O14: with funding from USAID/PMI
O15: Cooperative Agreement No. GHS-A‐00‐09-00014-00
B16: Median survival calculator | J16: Formula for median survival
C18: time (yrs) | E18: survival (%) | F18: 95% CI low | G18: 95% CI high
B19: t1 | D19: p1
B20: t2 | D20: p2 | J20: tm= | K20: median survival
J21: t1= | K21: first time point (years since distribution)
C22: tm | D22: 95% CI low | E22: 95% CI high | J22: t2= | K22: second time point
C23: =IF( AND(C19>0, C20>0,E19>0, E20>0), C19+((C20-C19)*(E19-50)/(E19-E20)), " ") ->  | D23: =IF(AND(C19>0, C20>0, F19>0, F20>0), C19+((C20-C19)*(F19-50)/(F19-F20)), " ") ->  | E23: =IF(AND(C19>0, C20>0, G19>0, G20>0), C19+((C20-C19)*(G19-50)/(G19-G20)), " ") ->  | J23: p1= | K23: functional survival at t1
J25: p2= | K25: functional survival at t2
